bitfinex/quotes_SOLUSD_20250118
["timestamp","ask_amount","ask_price","bid_price","bid_amount"]
[1737221716960,0.74395969,252.08,252.01,31.93417938]
[1737221717165,0.74399327,252.1,252.03,31.93417938]
[1737221717466,0.74383461,252.12,252.03,31.93417938]
[1737221717972,0.74387908,252.12,252.05,31.93417938]
[1737221718150,31.93417938,252.17,252.07,31.93417938]
[1737221718351,0.74369784,252.16,252.07,31.93417938]
[1737221718575,31.93417938,252.13,252.03,31.93417938]
[1737221718754,0.74379041,252.12,252.05,31.93417938]
[1737221718961,31.93417938,252.15,251.94,31.93417938]
[1737221718962,55.71106338,252.13,252.03,31.93417938]
[1737221719170,0.74375919,252.11,252.03,31.93417938]
[1737221719358,0.74392733,252.12,252.03,31.93417938]
[1737221719559,3.9659,252.15,252.07,31.93417938]
[1737221719869,0.74374728,252.16,252.12,31.93417938]
[1737221720076,0.74374728,252.16,251.95,23.776884]
[1737221720077,0.74363813,252.2,252.14,31.93417938]
[1737221720494,3.9649,252.21,252.12,31.93417938]
[1737221720652,0.74365388,252.2,252.12,31.93417938]
[1737221720853,31.93417938,252.27,252.18,31.93417938]
[1737221721059,31.93417938,252.25,252.14,31.93417938]
[1737221721262,31.93417938,252.23,252.12,31.93417938]
[1737221721571,0.74352322,252.22,252.14,31.93417938]
[1737221721756,1.49464884,252.32,252.2,31.93417938]
[1737221721757,31.93417938,252.29,252.2,31.93417938]
[1737221721954,0.74338621,252.32,252.24,31.93417938]
[1737221722162,3.9623,252.38,252.29,31.93417938]
[1737221722355,3.9623,252.38,252.07,43.85417938]
[1737221722356,31.93417938,252.35,252.25,31.93417938]
[1737221722554,31.93417938,252.39,252.29,31.93417938]
[1737221722848,0.74306895,252.43,252.35,31.93417938]
[1737221723058,0.74295877,252.54,252.41,31.93417938]
[1737221723276,0.74295877,252.54,252.47,31.93417938]
[1737221723454,23.776884,252.49,252.43,31.93417938]
[1737221723779,0.00474979,252.5,252.47,31.93417938]
[1737221724253,0.00474979,252.5,252.49,31.93417938]
[1737221724681,0.80555518,252.64,252.49,31.93417938]
[1737221724850,0.80555518,252.64,252.46,31.93417938]
[1737221724851,0.063,252.64,252.63,31.93417938]
[1737221725176,0.063,252.67,252.63,31.93417938]
[1737221725362,0.063,252.67,252.66,31.93417938]
[1737221725865,0.063,252.67,252.6,31.93417938]
[1737221726067,4.76306739,252.67,252.58,31.93417938]
[1737221726374,0.063,252.67,252.65,31.93417938]
[1737221727275,0.063,252.7,252.65,31.93417938]
[1737221727485,0.063,252.76,252.69,82.10865876]
[1737221727654,0.03,252.84,252.83,63.86835876]
[1737221727974,0.03,252.84,252.83,31.93417938]
[1737221728363,0.03,252.84,252.79,31.93417938]
[1737221728755,0.03,252.84,252.83,31.93417938]
[1737221729681,0.03,252.84,252.83,63.86835876]
[1737221729880,4.75687888,253.0,252.94,31.93417938]
[1737221730179,4.75687888,253.0,252.92,31.93417938]
[1737221730351,31.93417938,252.99,252.88,31.93417938]
[1737221730555,0.74146145,252.98,252.9,31.93417938]
[1737221730753,0.74146145,252.98,252.92,31.93417938]
[1737221730973,0.74146145,252.98,252.85,31.93417938]
[1737221730974,3.953,252.97,252.9,31.93417938]
[1737221731277,23.776884,252.95,252.86,31.93417938]
[1737221731475,31.93417938,252.92,252.82,31.93417938]
[1737221731659,24.51850475,252.91,252.82,31.93417938]
[1737221731861,24.51850475,252.91,252.8,31.93417938]
[1737221732062,24.51850475,252.91,252.84,31.93417938]
[1737221732280,0.74162075,252.91,252.82,31.93417938]
[1737221732480,0.74162075,252.91,252.84,31.93417938]
[1737221732769,0.74155782,252.93,252.84,31.93417938]
[1737221733081,3.9538,252.92,252.84,31.93417938]
[1737221733262,0.74159671,252.91,252.84,31.93417938]
[1737221733886,0.74159671,252.91,252.86,31.93417938]
[1737221734071,0.74145651,252.93,252.88,31.93417938]
[1737221734389,0.74146249,253.07,252.92,31.93417938]
[1737221734678,0.22198872,253.16,252.99,31.93417938]
[1737221734870,0.22198872,253.16,253.15,31.93417938]
[1737221735469,0.22198872,253.16,253.13,31.93417938]
[1737221736079,0.96273725,253.16,253.11,31.93417938]
[1737221736377,4.17208872,253.16,253.11,31.93417938]
[1737221736684,0.74084087,253.15,253.05,31.93417938]
[1737221736879,0.74084087,253.15,253.06,31.93417938]
[1737221737179,0.74084087,253.15,253.03,31.93417938]
[1737221737180,31.93417938,253.13,253.03,31.93417938]
[1737221737365,55.71106338,253.11,253.01,31.93417938]
[1737221737564,0.74104238,253.1,253.01,31.93417938]
[1737221737768,23.776884,253.09,253.01,31.93417938]
[1737221737979,31.93417938,253.03,252.93,31.93417938]
[1737221738168,0.74125552,253.02,252.93,31.93417938]
[1737221738368,0.74125552,253.02,252.97,31.93417938]
[1737221738570,0.74121541,253.04,252.97,31.93417938]
[1737221739185,3.9521,253.03,252.97,31.93417938]
[1737221739366,0.74121145,253.02,252.97,31.93417938]
[1737221740481,0.74121145,253.02,252.95,31.93417938]
[1737221740693,0.74121145,253.02,252.97,31.93417938]
[1737221740988,55.71106338,253.01,252.91,31.93417938]
[1737221741287,23.776884,252.98,252.89,31.93417938]
[1737221741485,3.9525,253.0,252.95,31.93417938]
[1737221742087,3.9522,253.02,252.97,31.93417938]
[1737221742680,0.74116384,253.01,252.95,31.93417938]
[1737221742881,4.69340164,253.02,252.97,31.93417938]
[1737221743086,1.52056006,253.09,252.99,31.93417938]
[1737221743087,3.9519,253.04,252.99,31.93417938]
[1737221743289,3.9502,253.15,253.03,31.93417938]
[1737221743481,3.9502,253.15,253.1,31.93417938]
[1737221743790,0.22198872,253.16,253.12,31.93417938]
[1737221743989,4.17208872,253.16,253.12,31.93417938]
[1737221744181,4.17208872,253.16,253.09,31.93417938]
[1737221744490,0.22198872,253.16,253.14,31.93417938]
[1737221744686,0.22198872,253.16,253.1,31.93417938]
[1737221744883,0.22198872,253.16,253.12,31.93417938]
[1737221745289,0.22198872,253.16,253.14,31.93417938]
[1737221745789,0.22198872,253.16,252.98,49.85487938]
[1737221745790,45.75987938,253.15,252.98,4.9924]
[1737221746096,0.74083786,253.14,253.1,31.93417938]
[1737221746278,24.51772186,253.14,253.08,31.93417938]
[1737221746478,31.93417938,253.13,253.05,31.93417938]
[1737221746686,0.74095664,253.12,253.03,31.93417938]
[1737221747187,13.8279,253.11,253.03,31.93417938]
[1737221747391,31.93417938,253.05,252.96,31.93417938]
[1737221747583,31.93417938,253.01,252.92,31.93417938]
[1737221747785,4.69192871,253.12,253.0,31.93417938]
[1737221747983,31.93417938,253.18,253.08,31.93417938]
[1737221748199,4.17208872,253.16,253.1,31.93417938]
[1737221748397,36.1062681,253.16,253.06,31.93417938]
[1737221748578,0.03,253.15,253.14,31.93417938]
[1737221748898,0.03,253.15,253.08,31.93417938]
[1737221749396,31.93417938,253.14,253.04,31.93417938]
[1737221749598,0.7408885,253.13,253.04,31.93417938]
[1737221750085,32.67506788,253.13,253.02,31.93417938]
[1737221750283,0.77087746,253.15,253.08,31.93417938]
[1737221750489,0.03,253.15,253.08,31.93417938]
[1737221751388,0.03,253.15,253.1,31.93417938]
[1737221752202,0.77070258,253.15,253.07,31.93417938]
[1737221752600,0.03,253.15,253.11,31.93417938]
[1737221752784,0.03,253.15,253.1,31.93417938]
[1737221753095,0.03,253.15,253.14,31.93417938]
[1737221754796,0.03,253.15,253.12,31.93417938]
[1737221754981,0.03,253.15,253.14,31.93417938]
[1737221757201,0.03,253.15,253.12,31.93417938]
[1737221757406,0.03,253.15,253.08,31.93417938]
[1737221757585,0.03,253.15,253.12,31.93417938]
[1737221757791,0.03,253.15,253.14,31.93417938]
[1737221763011,0.22198872,253.16,253.14,31.93417938]
[1737221763012,0.03,253.26,253.15,23.776884]
[1737221763218,0.03,253.26,253.25,31.93417938]
[1737221765304,0.03,253.26,253.25,55.71106338]
[1737221765892,0.03,253.26,253.25,31.93417938]
[1737221766516,0.03,253.26,253.24,31.93417938]
[1737221766813,4.71624976,253.41,253.24,63.86835876]
[1737221766814,0.03,253.41,253.24,63.86835876]
[1737221767004,0.03,253.41,253.38,31.93417938]
[1737221767389,0.03,253.41,253.4,31.93417938]
[1737221767792,0.03,253.41,253.38,31.93417938]
[1737221768401,31.96417938,253.41,253.32,31.93417938]
[1737221768599,0.74008893,253.4,253.32,31.93417938]
[1737221769197,31.93417938,253.35,253.25,31.93417938]
[1737221769411,31.93417938,253.26,253.05,1.56602855]
[1737221769616,31.93417938,253.18,253.08,31.93417938]
[1737221769822,31.93417938,253.1,253.0,31.93417938]
[1737221769997,31.93417938,253.07,252.98,31.99717938]
[1737221770311,0.74098766,253.26,252.98,0.063]
[1737221770499,3.9471,253.35,252.99,15.795661]
[1737221770699,23.776884,253.33,252.99,15.795661]
[1737221770890,0.74048707,253.32,252.99,15.795661]
[1737221771094,31.93417938,253.19,253.09,31.93417938]
[1737221771525,31.93417938,253.17,253.07,31.93417938]
[1737221771819,31.93417938,253.13,253.03,31.93417938]
[1737221771993,31.93417938,253.08,252.99,15.795661]
[1737221772195,31.93417938,253.1,253.0,31.93417938]
[1737221772515,31.93417938,253.12,253.02,31.93417938]
[1737221772706,31.93417938,253.14,253.04,31.93417938]
[1737221773204,0.74083224,253.19,253.06,31.93417938]
[1737221773205,31.93417938,253.16,253.06,31.93417938]
[1737221773603,35.88347938,253.21,253.1,31.93417938]
[1737221773901,31.93417938,253.17,252.99,23.776884]
[1737221774105,31.93417938,253.25,253.14,31.93417938]
[1737221774307,31.93417938,253.19,253.1,31.93417938]
[1737221774714,31.93417938,253.25,253.14,31.93417938]
[1737221774895,31.93417938,253.25,253.16,31.93417938]
[1737221775319,31.93417938,253.27,253.16,31.93417938]
[1737221775910,31.93417938,253.32,253.2,31.93417938]
[1737221776223,31.93417938,253.36,253.24,31.93417938]
[1737221776520,0.74014833,253.35,253.24,31.93417938]
[1737221776705,31.93417938,253.34,253.24,31.93417938]
[1737221776903,31.93417938,253.32,253.21,31.93417938]
[1737221777101,3.9465,253.39,253.07,5.2267]
[1737221777102,31.93417938,253.26,253.23,15.79013]
[1737221777312,0.74044808,253.25,253.15,31.93417938]
[1737221777512,31.93417938,253.28,253.17,31.93417938]
[1737221777721,31.93417938,253.3,253.19,31.93417938]
[1737221778423,31.93417938,253.3,253.16,15.793898]
[1737221778424,31.93417938,253.34,253.23,31.93417938]
[1737221778613,31.93417938,253.34,253.25,31.93417938]
[1737221778819,0.7401901,253.33,253.25,31.93417938]
[1737221779017,0.7401901,253.33,253.23,31.93417938]
[1737221779406,31.93417938,253.34,253.23,31.93417938]
[1737221779818,31.93417938,253.32,253.23,31.93417938]
[1737221780125,31.93417938,253.34,253.23,31.93417938]
[1737221780323,31.93417938,253.32,253.21,31.93417938]
[1737221780504,31.93417938,253.3,253.21,31.93417938]
[1737221780922,31.93417938,253.26,253.16,47.72807738]
[1737221781219,31.93417938,253.28,253.18,31.93417938]
[1737221781805,45.74797938,253.37,253.16,15.793898]
[1737221781806,31.93417938,253.24,253.16,15.793898]
[1737221782026,31.93417938,253.26,253.16,31.93417938]
[1737221782202,31.93417938,253.24,253.14,15.793744]
[1737221782409,31.93417938,253.22,253.12,31.93417938]
[1737221782729,31.93417938,253.22,252.95,5.2267]
[1737221782730,31.93417938,253.3,253.2,31.93417938]
[1737221783025,31.93417938,253.3,253.11,31.93417938]
[1737221783244,31.93417938,253.26,253.17,31.93417938]
[1737221783525,31.93417938,253.26,253.15,31.93417938]
[1737221783716,31.93417938,253.22,253.13,31.93417938]
[1737221784316,31.93417938,253.26,253.17,31.93417938]
[1737221784521,31.93417938,253.29,253.19,31.93417938]
[1737221785723,0.74022037,253.36,253.27,31.93417938]
[1737221785923,31.93417938,253.44,253.35,31.93417938]
[1737221786121,31.93417938,253.46,253.35,31.93417938]
[1737221786424,31.93417938,253.44,253.35,31.93417938]
[1737221786631,0.76991021,253.41,253.31,31.93417938]
[1737221786815,31.93417938,253.4,253.31,31.93417938]
[1737221787010,0.03,253.41,253.31,31.93417938]
[1737221787210,0.03,253.41,253.35,31.93417938]
[1737221787419,0.03,253.41,253.37,31.93417938]
[1737221787620,0.03,253.41,253.39,31.93417938]
[1737221788433,0.03,253.41,253.37,31.93417938]
[1737221788629,0.03,253.41,253.34,31.93417938]
[1737221788946,0.03,253.41,253.32,31.93417938]
[1737221789318,0.03,253.41,253.4,31.93417938]
[1737221790760,0.03,253.41,253.38,31.93417938]
[1737221791336,31.93417938,253.4,253.3,31.93417938]
[1737221791511,31.93417938,253.34,253.26,31.93417938]
[1737221791707,31.93417938,253.32,253.23,31.93417938]
[1737221791919,31.93417938,253.36,253.25,31.93417938]
[1737221792119,0.74010168,253.35,253.25,31.93417938]
[1737221792338,31.93417938,253.3,253.21,31.93417938]
[1737221792638,31.93417938,253.3,253.19,31.93417938]
[1737221792837,31.93417938,253.3,253.21,31.93417938]
[1737221793340,31.93417938,253.32,253.21,31.93417938]
[1737221793832,31.93417938,253.36,253.25,31.93417938]
[1737221794022,31.93417938,253.34,253.23,31.93417938]
[1737221794221,31.93417938,253.38,253.27,31.93417938]
[1737221794420,31.93417938,253.4,253.3,31.93417938]
[1737221794628,0.03,253.41,253.32,31.93417938]
[1737221794927,31.93417938,253.38,253.28,31.93417938]
[1737221795232,4.71616539,253.41,253.3,31.93417938]
[1737221795233,31.93417938,253.4,253.3,31.93417938]
[1737221795410,31.93417938,253.38,253.28,31.93417938]
[1737221795612,0.03,253.41,253.26,31.93417938]
[1737221795613,31.93417938,253.36,253.26,31.93417938]
[1737221796218,31.93417938,253.38,253.26,31.93417938]
[1737221796415,31.93417938,253.38,253.28,31.93417938]
[1737221796623,0.03,253.41,253.32,31.93417938]
[1737221797134,31.93417938,253.38,253.28,31.93417938]
[1737221797319,31.93417938,253.36,253.26,31.93417938]
[1737221797514,31.93417938,253.27,253.18,31.93417938]
[1737221797737,0.03,253.41,253.26,31.93417938]
[1737221797956,0.03,253.41,253.24,31.93417938]
[1737221797957,31.93417938,253.34,253.24,31.93417938]
[1737221798112,0.74020323,253.33,253.22,31.93417938]
[1737221798318,31.93417938,253.32,253.22,31.93417938]
[1737221798528,31.93417938,253.34,253.22,31.93417938]
[1737221798739,31.93417938,253.34,253.24,31.93417938]
[1737221798938,31.93417938,253.3,253.2,31.93417938]
[1737221799120,31.93417938,253.34,253.22,31.93417938]
[1737221799319,31.93417938,253.34,253.24,31.93417938]
[1737221799521,31.93417938,253.36,253.26,0.063]
[1737221799838,0.74020126,253.35,253.26,0.063]
[1737221800038,35.88077938,253.38,253.27,31.93417938]
[1737221800230,0.74012798,253.37,253.27,31.93417938]
[1737221800739,31.93417938,253.38,253.26,0.063]
[1737221801045,0.03,253.41,253.32,31.93417938]
[1737221801343,0.03,253.41,253.31,31.93417938]
[1737221801344,0.77002865,253.41,253.31,31.93417938]
[1737221801723,0.03,253.41,253.33,31.93417938]
[1737221802038,0.03,253.41,253.31,31.93417938]
[1737221802244,0.76997314,253.41,253.31,31.93417938]
[1737221802446,0.03,253.41,253.31,31.93417938]
[1737221802643,0.03,253.41,253.33,31.93417938]
[1737221802822,0.03,253.41,253.29,31.93417938]
[1737221802823,31.96417938,253.41,253.29,31.93417938]
[1737221803024,31.96417938,253.41,253.26,0.063]
[1737221803025,31.93417938,253.31,253.26,0.063]
[1737221803844,31.93417938,253.27,253.26,0.063]
[1737221804035,31.93417938,253.29,253.26,0.063]
[1737221804239,0.74042432,253.36,253.26,0.063]
[1737221804240,0.74037437,253.36,253.28,31.93417938]
[1737221804550,0.03,253.41,253.35,31.93417938]
[1737221804732,0.03,253.41,253.4,31.93417938]
[1737221805541,0.03,253.41,253.29,31.93417938]
[1737221805826,31.93417938,253.32,253.26,0.063]
[1737221806032,31.93417938,253.27,253.26,0.063]
[1737221806743,20.0,253.23,253.16,0.063]
[1737221807047,0.74067258,253.22,253.03,31.93417938]
[1737221807232,0.74075663,253.26,252.98,31.99717938]
[1737221807429,31.93417938,253.27,253.15,31.93417938]
[1737221807630,0.74040269,253.3,252.98,1.64352199]
[1737221807839,23.776884,253.28,253.0,15.801848]
[1737221808057,20.0,253.21,252.98,0.063]
[1737221808238,20.0,253.16,252.98,0.063]
[1737221808544,0.72826788,253.2,253.13,31.93417938]
[1737221808747,31.93417938,253.26,253.16,31.93417938]
[1737221809051,31.93417938,253.22,253.12,31.93417938]
[1737221809350,31.93417938,253.14,253.04,31.93417938]
[1737221809524,31.93417938,253.14,252.98,0.063]
[1737221809525,31.93417938,253.08,252.98,31.99717938]
[1737221809833,31.93417938,253.18,253.06,31.93417938]
[1737221810034,33.48956736,253.22,253.12,31.93417938]
[1737221810342,31.93417938,253.13,252.98,0.063]
[1737221810538,0.74102709,253.12,253.01,31.93417938]
[1737221810738,31.93417938,253.03,252.98,0.063]
[1737221810947,0.74118119,253.02,252.98,0.063]
[1737221811139,31.93417938,252.99,252.98,0.063]
[1737221812229,31.93417938,252.99,252.75,15.816531]
[1737221812230,20.0,252.87,252.75,15.816531]
[1737221812430,31.93417938,252.8,252.75,15.816531]
[1737221812634,31.93417938,252.76,252.72,0.063]
[1737221812940,31.93417938,252.76,252.62,5.83280165]
[1737221812941,31.93417938,252.73,252.62,5.83280165]
[1737221813135,31.93417938,252.67,252.58,0.063]
[1737221813453,31.93417938,252.65,252.58,0.063]
[1737221813632,15.43303061,252.78,252.58,0.063]
[1737221813633,0.74229129,252.64,252.58,0.063]
[1737221813831,13.846,252.78,252.58,0.063]
[1737221813832,31.93417938,252.6,252.58,0.063]
[1737221814039,31.93417938,252.62,252.58,0.063]
[1737221814243,31.93417938,252.65,252.58,0.063]
[1737221814437,0.7423344,252.64,252.58,0.063]
[1737221814642,31.93417938,252.59,252.58,0.063]
[1737221814843,31.93417938,252.63,252.58,0.063]
[1737221815033,31.93417938,252.63,252.45,13.846]
[1737221815034,63.86835876,252.59,252.45,13.846]
[1737221815346,63.86835876,252.59,252.1,73.55603097]
[1737221815347,31.93417938,252.46,252.35,31.93417938]
[1737221815651,0.74293909,252.45,252.35,31.93417938]
[1737221815844,31.93417938,252.44,252.33,31.93417938]
[1737221816148,31.93417938,252.59,252.35,31.93417938]
[1737221816149,0.742953,252.43,252.35,31.93417938]
[1737221816350,31.93417938,252.42,252.31,31.93417938]
[1737221816557,31.93417938,252.44,252.33,31.93417938]
[1737221816730,0.74290514,252.43,252.33,31.93417938]
[1737221816930,32.67706795,252.48,252.37,31.93417938]
[1737221817157,31.93417938,252.53,252.42,31.93417938]
[1737221817335,31.93417938,252.53,252.33,31.93417938]
[1737221817336,0.74267973,252.52,252.4,31.93417938]
[1737221817539,0.74267973,252.52,252.44,31.93417938]
[1737221817731,31.93417938,252.59,252.46,31.93417938]
[1737221818034,31.93417938,252.61,252.34,17.6691]
[1737221818245,0.74241186,252.6,252.5,31.93417938]
[1737221818448,0.74242454,252.67,252.58,31.93417938]
[1737221818636,20.1341,252.82,252.65,31.93417938]
[1737221818637,31.93417938,252.76,252.65,31.93417938]
[1737221818844,4.69845992,252.77,252.65,31.93417938]
[1737221818845,0.74201179,252.75,252.65,31.93417938]
[1737221819048,4.69841179,252.75,252.65,31.93417938]
[1737221819239,4.69841179,252.75,252.63,31.93417938]
[1737221819240,31.93417938,252.74,252.63,31.93417938]
[1737221819551,1.5561974,252.79,252.46,31.93417938]
[1737221819552,31.93417938,252.78,252.67,31.93417938]
[1737221819737,32.67607642,252.77,252.65,31.93417938]
[1737221819940,0.74189704,252.77,252.67,31.93417938]
[1737221820254,0.7419481,252.78,252.69,31.93417938]
[1737221820449,31.93417938,252.71,252.63,15.826243]
[1737221820773,31.93417938,252.68,252.57,31.93417938]
[1737221820957,31.93417938,252.64,252.52,31.93417938]
[1737221821150,0.74236322,252.63,252.52,31.93417938]
[1737221821348,31.93417938,252.58,252.35,15.83427]
[1737221821658,31.93417938,252.47,252.34,31.93417938]
[1737221821848,23.776884,252.56,252.34,31.93417938]
[1737221821849,31.93417938,252.45,252.34,31.93417938]
[1737221822050,0.74279249,252.44,252.32,31.93417938]
[1737221822355,31.93417938,252.43,252.32,31.93417938]
[1737221822534,31.93417938,252.41,252.3,31.93417938]
[1737221822734,31.93417938,252.34,251.94,17.6691]
[1737221822937,31.93417938,252.3,252.24,15.848782]
[1737221823140,0.7433123,252.29,252.19,31.93417938]
[1737221823438,31.93417938,252.28,252.15,31.93417938]
[1737221823639,31.93417938,252.22,252.11,31.93417938]
[1737221823946,31.93417938,252.26,252.15,31.93417938]
[1737221824134,31.93417938,252.26,252.07,31.93417938]
[1737221824135,0.74350216,252.25,252.07,31.93417938]
[1737221824370,31.93417938,252.19,252.08,31.93417938]
[1737221824657,0.7437886,252.18,252.08,31.93417938]
[1737221824838,0.74373047,252.24,252.17,31.93417938]
[1737221825042,31.93417938,252.33,251.97,17.38403926]
[1737221825240,31.93417938,252.27,252.16,31.93417938]
[1737221825463,31.93417938,252.25,252.14,31.93417938]
[1737221825642,0.74356695,252.24,252.14,31.93417938]
[1737221825848,0.74356695,252.24,251.97,15.865843]
[1737221825849,31.93417938,252.21,251.97,15.865843]
[1737221826045,0.74376053,252.2,252.1,31.93417938]
[1737221826279,0.74376053,252.2,252.12,31.93417938]
[1737221826560,0.74360812,252.22,252.14,31.93417938]
[1737221826854,3.9646,252.23,252.16,31.93417938]
[1737221827059,0.74351417,252.22,252.16,31.93417938]
[1737221827256,31.93417938,252.25,251.98,1.52645357]
[1737221827448,31.93417938,252.23,252.11,31.93417938]
[1737221827642,0.74367951,252.22,252.11,31.93417938]
[1737221827842,0.74367951,252.22,251.97,15.865843]
[1737221827843,20.0,252.2,252.09,31.93417938]
[1737221828042,0.7437339,252.19,252.09,31.93417938]
[1737221828858,0.74374845,252.19,252.15,31.93417938]
[1737221829060,4.70839104,252.22,252.11,31.93417938]
[1737221829360,4.70839104,252.22,252.13,31.93417938]
[1737221829553,0.74359104,252.22,252.15,31.93417938]
[1737221829858,0.74349832,252.25,252.17,31.93417938]
[1737221830061,4.70789832,252.25,252.07,31.93417938]
[1737221830263,4.70789832,252.25,252.17,31.93417938]
[1737221830957,0.74346847,252.29,252.19,31.93417938]
[1737221831138,0.7433684,252.33,252.25,31.93417938]
[1737221831455,32.67735837,252.32,252.22,31.93417938]
[1737221831650,31.93417938,252.26,252.16,31.93417938]
[1737221831856,0.74357474,252.25,252.16,31.93417938]
[1737221832043,0.74357474,252.25,252.18,31.93417938]
[1737221832362,0.74342256,252.28,252.2,31.93417938]
[1737221832857,31.93417938,252.39,252.26,31.93417938]
[1737221833157,4.70542504,252.38,252.29,31.93417938]
[1737221833372,31.93417938,252.39,252.31,31.93417938]
[1737221833373,0.74309418,252.39,252.31,31.93417938]
[1737221833542,0.74309418,252.39,252.33,31.93417938]
[1737221833857,1.57977631,252.46,252.37,31.93417938]
[1737221834062,1.57977631,252.46,252.45,31.93417938]
[1737221834442,3.9611,252.45,252.3,31.93417938]
[1737221834665,31.93417938,252.41,252.28,31.93417938]
[1737221834855,0.74317276,252.4,252.24,31.93417938]
[1737221835057,31.93417938,252.35,252.24,31.93417938]
[1737221835356,20.74330699,252.34,252.24,31.93417938]
[1737221835668,20.0,252.24,252.07,31.93417938]
[1737221835966,31.93417938,252.17,252.06,31.93417938]
[1737221836156,31.93417938,252.33,252.04,31.93417938]
[1737221836157,31.93417938,252.15,252.04,31.93417938]
[1737221836349,0.74387693,252.14,252.04,31.93417938]
[1737221836568,0.74387693,252.14,252.06,31.93417938]
[1737221836745,0.74380707,252.16,252.06,31.93417938]
[1737221837069,3.966,252.14,252.06,31.93417938]
[1737221837239,0.74380238,252.13,252.06,31.93417938]
[1737221837445,0.74380343,252.16,252.1,31.93417938]
[1737221837661,3.9657,252.17,252.1,31.93417938]
[1737221837854,3.965,252.21,252.16,31.93417938]
[1737221838045,1.58333599,252.24,252.19,31.93417938]
[1737221838364,1.58333599,252.24,252.23,31.93417938]
[1737221838575,3.9624,252.37,252.23,31.93417938]
[1737221838746,0.74316188,252.36,252.29,31.93417938]
[1737221838943,3.9627,252.35,252.29,31.93417938]
[1737221839160,22.7152,252.43,252.2,23.776884]
[1737221839161,3.9624,252.37,252.31,31.93417938]
[1737221839362,4.70486194,252.41,252.35,31.93417938]
[1737221839571,4.70486194,252.41,252.33,31.93417938]
[1737221840049,4.70486194,252.41,252.31,31.93417938]
[1737221840247,31.93417938,252.48,252.37,31.93417938]
[1737221840449,0.74290065,252.47,252.41,31.93417938]
[1737221841053,3.961,252.46,252.41,31.93417938]
[1737221841351,0.74278282,252.45,252.4,31.93417938]
[1737221841658,3.9603,252.5,252.42,31.93417938]
[1737221841860,0.7427709,252.49,252.42,31.93417938]
[1737221842058,0.7427709,252.49,252.44,31.93417938]
[1737221842361,0.7427709,252.49,252.46,31.93417938]
[1737221842565,3.9586,252.61,252.48,31.93417938]
[1737221842764,0.74243694,252.71,252.6,31.93417938]
[1737221842962,0.74243694,252.71,252.45,1.58388224]
[1737221842963,4.69963694,252.71,252.45,1.58388224]
[1737221843276,3.9572,252.7,252.62,31.93417938]
[1737221843464,20.0,252.67,252.57,31.93417938]
[1737221843657,31.93417938,252.64,252.53,31.93417938]
[1737221843854,23.776884,252.61,252.49,31.93417938]
[1737221844063,0.74262018,252.6,252.53,31.93417938]
[1737221844244,0.7424354,252.61,252.55,31.93417938]
[1737221844448,0.74238958,252.63,252.59,31.93417938]
[1737221844658,0.74228649,252.67,252.59,31.93417938]
[1737221844855,0.74216707,252.69,252.63,31.93417938]
[1737221845046,32.67625393,252.83,252.67,31.93417938]
[1737221845249,31.93417938,252.81,252.7,31.93417938]
[1737221845459,31.93417938,252.75,252.64,31.93417938]
[1737221845653,0.74210917,252.74,252.64,31.93417938]
[1737221845856,31.93417938,252.69,252.59,31.93417938]
[1737221846177,0.74226311,252.68,252.59,31.93417938]
[1737221846377,0.74226311,252.68,252.61,31.93417938]
[1737221846674,31.93417938,252.8,252.66,31.93417938]
[1737221846968,13.8437,252.82,252.62,31.93417938]
[1737221846969,31.93417938,252.74,252.62,31.93417938]
[1737221847150,14.59079657,252.73,252.64,31.93417938]
[1737221847351,31.93417938,252.7,252.59,31.93417938]
[1737221847563,31.93417938,252.66,252.57,31.99717938]
[1737221847765,0.03,252.7,252.59,31.93417938]
[1737221847766,0.74231402,252.65,252.59,31.93417938]
[1737221848064,0.77221525,252.7,252.63,31.93417938]
[1737221848267,0.03,252.7,252.68,31.93417938]
[1737221848971,0.03,252.7,252.64,31.93417938]
[1737221849164,0.03,252.7,252.57,0.063]
[1737221849165,0.03,252.7,252.6,31.93417938]
[1737221849367,31.93417938,252.63,252.57,0.063]
[1737221849671,31.93417938,252.61,252.57,0.063]
[1737221849864,0.74244711,252.6,252.57,0.063]
[1737221850063,0.74236867,252.62,252.57,0.063]
[1737221850572,0.74238007,252.66,252.58,31.93417938]
[1737221850791,0.03,252.7,252.62,31.93417938]
[1737221850968,0.03,252.7,252.68,31.93417938]
[1737221851671,31.93417938,252.92,252.69,55.71106338]
[1737221851873,31.96417938,252.94,252.83,31.93417938]
[1737221852053,31.93417938,252.88,252.77,31.93417938]
[1737221852263,31.93417938,252.8,252.69,31.93417938]
[1737221852570,0.74191638,252.79,252.71,31.93417938]
[1737221852750,0.74191638,252.79,252.65,31.93417938]
[1737221852751,31.93417938,252.76,252.65,31.93417938]